bitfinex/quotes_ETHUSD_20250629
["timestamp","ask_amount","ask_price","bid_price","bid_amount"]
[1751194483564,0.2032,2457.6,2457.5,6.603]
[1751194486260,0.2032,2457.6,2457.5,10.67217599]
[1751194486432,0.2032,2457.6,2457.5,6.603]
[1751194488760,0.2032,2457.6,2457.5,11.22217599]
[1751194488948,10.7677,2457.9,2457.5,10.67217599]
[1751194489142,0.2032,2457.7,2457.6,0.55]
[1751194490434,0.2032,2457.7,2457.6,4.61901041]
[1751194491258,0.2032,2457.7,2457.6,0.55]
[1751194491653,0.2032,2457.7,2457.5,6.603]
[1751194492561,0.2032,2457.7,2457.5,0.55]
[1751194492745,0.2032,2457.7,2457.6,6.599]
[1751194494153,0.2032,2457.7,2457.4,0.55]
[1751194494359,0.70716013,2457.7,2457.6,6.599]
[1751194495750,0.2032,2457.7,2457.6,6.599]
[1751194496647,0.2032,2457.7,2457.6,7.149]
[1751194497675,0.2032,2457.7,2457.6,11.21801041]
[1751194498374,0.2032,2457.7,2457.6,7.149]
[1751194505602,0.2032,2457.7,2457.6,11.21801041]
[1751194505763,0.2032,2457.7,2457.6,7.149]
[1751194506788,0.2032,2457.7,2457.6,7.141]
[1751194507083,0.70716615,2457.7,2457.6,7.141]
[1751194507285,0.2032,2457.7,2457.6,7.141]
[1751194507785,4.27204485,2457.7,2457.6,6.59]
[1751194508652,4.27204485,2457.7,2457.3,0.55]
[1751194508982,0.9832,2457.6,2457.4,6.59]
[1751194509503,0.9832,2457.6,2457.1,4.27293784]
[1751194509777,5.05230832,2457.6,2457.2,7.139]
[1751194510113,4.0692003,2457.5,2457.3,6.589]
[1751194510270,4.06948256,2457.4,2457.1,0.55]
[1751194510472,4.06953172,2457.3,2457.0,1.701]
[1751194510674,4.27262972,2457.4,2457.2,6.589]
[1751194510989,0.2032,2457.4,2457.2,6.589]
[1751194512148,4.27257755,2457.4,2457.2,6.589]
[1751194512494,5.27598477,2457.4,2457.1,0.55]
[1751194512677,4.06988973,2457.1,2456.9,0.002]
[1751194512858,4.27308973,2457.1,2457.0,6.589]
[1751194513650,0.2032,2457.1,2457.0,6.589]
[1751194516095,4.27303842,2457.1,2457.0,6.589]
[1751194516298,0.2032,2457.1,2457.0,6.589]
[1751194517188,10.8047,2457.4,2457.1,0.55]
[1751194517487,0.2032,2457.3,2457.1,0.55]
[1751194518377,0.2032,2457.3,2457.1,4.61976552]
[1751194519290,0.2032,2457.3,2457.2,4.61967279]
[1751194519449,0.2032,2457.6,2457.4,4.06931122]
[1751194519651,0.2032,2457.6,2457.5,6.588]
[1751194520905,0.2032,2457.6,2457.5,10.65717599]
[1751194521206,0.2032,2457.6,2457.5,11.20717599]
[1751194521384,0.2032,2457.8,2457.6,0.55]
[1751194523106,4.27189307,2457.8,2457.6,0.55]
[1751194525508,4.06892888,2457.7,2457.5,6.588]
[1751194525705,0.2032,2457.7,2457.5,6.588]
[1751194532021,4.27208316,2457.7,2457.5,6.588]
[1751194533249,0.2032,2457.7,2457.5,6.588]
[1751194536535,0.8161,2457.6,2457.4,6.584]
[1751194536703,4.88461377,2457.9,2457.4,6.584]
[1751194536895,0.2032,2457.5,2457.4,6.584]
[1751194541743,0.2032,2457.5,2457.4,7.134]
[1751194547245,0.2032,2457.5,2457.4,11.20334158]
[1751194548385,0.2032,2457.5,2457.4,7.134]
[1751194554985,0.2032,2457.5,2457.4,11.99954158]
[1751194555861,0.2032,2457.5,2457.4,7.9302]
[1751194556492,0.2032,2457.5,2457.4,11.99954158]
[1751194558273,4.06860997,2457.9,2457.4,11.99954158]
[1751194558587,0.2032,2457.6,2457.4,11.99954158]
[1751194560291,0.2032,2457.6,2457.4,7.134]
[1751194563303,0.2032,2457.6,2457.4,11.2033291]
[1751194563470,0.2032,2457.6,2457.4,7.134]
[1751194564104,0.2032,2457.6,2457.2,0.2032]
[1751194564404,0.2032,2457.5,2457.3,7.133]
[1751194567913,0.2032,2457.5,2457.3,11.20243073]
[1751194568217,0.2032,2457.5,2457.3,7.133]
[1751194569187,0.2032,2457.5,2457.2,0.55]
[1751194569388,0.2032,2457.5,2457.3,6.583]
[1751194570019,0.2032,2457.5,2457.2,0.55]
[1751194570191,4.69960299,2457.5,2457.3,6.583]
[1751194570515,4.69960299,2457.5,2457.4,6.583]
[1751194571206,0.6304215,2457.5,2457.4,6.583]
[1751194575823,0.6304215,2457.5,2457.4,6.582]
[1751194576021,0.2032,2457.5,2457.4,6.582]
[1751194576223,4.06859308,2457.9,2457.4,11.48314158]
[1751194576540,0.2032,2457.6,2457.4,11.48314158]
[1751194577413,0.2032,2457.6,2457.4,7.4138]
[1751194578643,0.2032,2457.6,2457.4,11.48313802]
[1751194578948,0.2032,2457.6,2457.4,7.4138]
[1751194579346,0.2032,2457.6,2457.4,11.48310133]
[1751194581947,14.06830514,2458.1,2457.6,4.61900391]
[1751194582150,0.61788259,2458.0,2457.8,0.55]
[1751194582313,0.11024782,2458.2,2457.8,5.43269361]
[1751194582314,0.2032,2458.1,2457.8,5.43269361]
[1751194583873,0.2032,2458.1,2457.8,1.3641]
[1751194584672,0.2032,2458.1,2457.8,0.55]
[1751194585273,0.2032,2458.1,2457.9,6.581]
[1751194585473,2.1236932,2458.1,2457.9,6.581]
[1751194585771,6.19190457,2458.1,2457.9,6.581]
[1751194586486,4.06843281,2458.0,2457.8,0.55]
[1751194586782,4.87538099,2458.0,2457.9,6.581]
[1751194586942,0.2032,2457.8,2457.4,0.8305]
[1751194587149,0.2032,2457.8,2457.6,0.55]
[1751194587376,4.06884485,2457.7,2457.1,2.4933]
[1751194587545,0.2032,2457.5,2457.3,0.55]
[1751194587745,0.2032,2457.5,2457.2,6.581]
[1751194587981,0.2032,2457.5,2457.2,0.55]
[1751194588160,0.2032,2457.5,2457.3,6.581]
[1751194590174,4.06960683,2457.3,2457.1,0.55]
[1751194590379,4.06960683,2457.3,2457.2,7.131]
[1751194590782,4.06960683,2457.3,2456.9,0.7973]
[1751194590953,4.06960683,2457.3,2457.0,7.131]
[1751194592057,4.06966193,2457.3,2457.0,7.131]
[1751194592474,4.94660839,2457.3,2457.0,7.131]
[1751194593990,4.06974382,2457.2,2457.1,7.131]
[1751194594598,0.87694646,2457.3,2456.9,0.2052]
[1751194594759,4.06991853,2457.1,2457.0,6.581]
[1751194594965,0.2032,2457.1,2457.0,6.581]
[1751194595273,0.2032,2457.1,2456.9,0.552]
[1751194595472,0.2032,2457.1,2457.0,6.581]
[1751194595672,4.27303842,2457.1,2457.0,6.581]
[1751194596056,0.2032,2457.1,2457.0,6.581]
[1751194596962,4.07000407,2457.0,2456.9,0.002]
[1751194597162,4.27320407,2457.0,2456.9,0.002]
[1751194600603,0.2032,2457.0,2456.9,0.552]
[1751194600935,0.2032,2457.1,2456.9,0.552]
[1751194605037,0.2032,2457.1,2457.0,4.07000407]
[1751194605367,0.2032,2457.1,2456.9,4.62216435]
[1751194605368,0.2032,2457.1,2456.9,0.552]
[1751194614336,4.07000407,2457.0,2456.9,0.002]
[1751194614716,4.27320407,2457.0,2456.9,0.002]
[1751194615215,0.2032,2457.0,2456.9,0.002]
[1751194615752,4.27320407,2457.0,2456.9,0.002]
[1751194616051,4.27320407,2457.0,2456.9,6.583]
[1751194620331,0.2032,2457.0,2456.9,6.583]
[1751194621065,4.27320407,2457.0,2456.9,6.583]
[1751194622063,0.2032,2457.0,2456.9,6.583]
[1751194622435,4.27320407,2457.0,2456.9,6.583]
[1751194623567,0.2032,2457.0,2456.9,6.583]
[1751194623782,0.2032,2457.0,2456.9,12.26849438]
[1751194624078,0.2032,2457.3,2457.0,4.61988267]
[1751194624673,0.2032,2457.3,2457.1,4.89076098]
[1751194626629,0.2032,2457.3,2457.2,0.55]
[1751194629859,4.27273453,2457.3,2457.0,0.2032]
[1751194630060,4.06977217,2457.2,2457.1,6.58]
[1751194630239,4.96593325,2457.2,2457.1,6.58]
[1751194631262,4.0695745,2457.3,2457.1,6.58]
[1751194633059,0.8223,2457.4,2457.0,0.8112]
[1751194633259,0.2032,2457.3,2457.1,6.58]
[1751194634957,4.27278246,2457.3,2457.1,6.58]
[1751194635161,4.27278246,2457.3,2457.2,6.58]
[1751194635551,6.18227362,2457.3,2457.2,6.58]
[1751194636537,2.11269116,2457.3,2457.2,6.58]
[1751194641066,6.18219834,2457.3,2457.2,6.58]
[1751194642692,2.11269116,2457.3,2457.2,6.58]
[1751194644561,6.18219834,2457.3,2457.2,6.58]
[1751194646510,2.11269116,2457.3,2457.2,6.58]
[1751194648200,0.2032,2457.3,2457.2,6.58]
[1751194652030,0.2032,2457.3,2457.2,7.4123]
[1751194657164,0.2032,2457.3,2457.2,6.58]
[1751194680316,0.2032,2457.3,2457.2,10.64967279]
[1751194680612,0.2032,2457.3,2457.2,6.58]
[1751194686239,0.2032,2457.3,2457.2,10.64967279]
[1751194686736,0.2032,2457.3,2457.2,6.58]
[1751194689346,1.11774707,2457.3,2456.9,5.38617354]
[1751194689544,1.11774707,2457.3,2457.0,6.576]
[1751194689718,5.18731347,2457.3,2457.0,6.576]
[1751194689920,0.7576,2457.2,2457.1,6.575]
[1751194690228,4.82733227,2457.2,2457.1,6.575]
[1751194691850,4.069853,2457.1,2456.9,0.002]
[1751194692020,0.2032,2457.0,2456.9,0.002]
[1751194692221,0.2032,2457.0,2456.9,6.577]
[1751194692734,0.2032,2457.0,2456.9,0.002]
[1751194693042,0.2032,2457.0,2456.9,6.578]
[1751194693241,5.18325163,2457.0,2456.9,0.002]
[1751194693444,15.18325163,2457.0,2456.9,0.002]
[1751194694345,15.94085163,2457.0,2456.9,0.002]
[1751194708471,11.11324756,2457.0,2456.9,0.002]
[1751194708840,10.2032,2457.0,2456.9,0.002]
[1751194710051,10.2032,2457.0,2456.9,4.07216972]
[1751194710254,10.2032,2457.0,2456.9,0.002]
[1751194717255,7.918,2457.3,2457.1,4.06981466]
[1751194717456,0.2032,2457.2,2457.1,10.64381466]
[1751194719192,0.2032,2457.2,2457.1,6.574]
[1751194728301,14.06929053,2457.5,2457.1,6.574]
[1751194728504,0.2032,2457.3,2457.1,6.574]
[1751194729908,4.27280415,2457.3,2457.1,6.574]
[1751194730109,0.2032,2457.2,2457.1,6.574]
[1751194732723,0.2032,2457.2,2456.9,0.002]
[1751194732928,4.06975322,2457.2,2457.1,6.572]
[1751194733095,4.96676906,2457.2,2457.1,6.572]
[1751194736258,4.07000407,2457.0,2456.9,0.002]
[1751194736420,4.07000407,2457.0,2456.9,6.574]
[1751194736960,4.0698927,2457.1,2456.9,6.574]
[1751194737750,4.96678344,2457.2,2456.9,6.574]
[1751194737949,4.0699362,2457.1,2456.9,6.574]
[1751194740441,5.05670816,2457.1,2456.9,6.574]
[1751194740743,4.07000407,2457.0,2456.9,6.574]
[1751194740945,5.05669118,2457.1,2456.9,6.574]
[1751194741533,0.98677196,2457.1,2456.9,6.574]
[1751194741862,4.06959296,2457.3,2457.0,0.8077]
[1751194742048,0.2032,2457.1,2457.0,0.8077]
[1751194745158,0.2032,2457.1,2457.0,1.3577]
[1751194745457,0.2032,2457.3,2457.0,1.3577]
[1751194745760,0.2032,2457.3,2457.0,5.42769602]
[1751194747465,0.2032,2457.3,2457.0,1.3577]
[1751194751576,0.2032,2457.3,2457.0,5.42767698]
[1751194752768,0.2032,2457.3,2457.1,0.55]
[1751194753071,0.2032,2457.4,2457.2,6.57]
[1751194753857,4.87138344,2457.4,2457.3,6.57]
[1751194754063,14.87138344,2457.4,2457.3,6.57]
[1751194754242,16.7654427,2457.4,2457.3,6.57]
[1751194756168,4.06958478,2457.3,2456.9,0.002]
[1751194756373,0.2032,2457.0,2456.9,6.572]
[1751194758607,4.27320407,2457.0,2456.9,0.002]
[1751194758809,0.2032,2457.0,2456.9,0.002]
[1751194770816,4.27320407,2457.0,2456.9,0.002]
[1751194771741,4.680915,2457.0,2456.9,6.571]
[1751194773036,0.61091093,2457.0,2456.9,6.571]
[1751194773208,0.2032,2457.0,2456.9,6.571]
[1751194782962,0.2032,2457.0,2456.9,11.45826972]
[1751194784332,0.2032,2457.0,2456.9,12.00826972]
[1751194788373,10.0,2457.4,2457.0,4.06992088]
[1751194788579,0.2032,2457.1,2457.0,4.06992088]
[1751194791493,0.2032,2457.1,2457.0,5.67773994]
[1751194791691,0.2032,2457.1,2457.0,6.22773994]
[1751194791894,0.2032,2457.3,2457.2,4.06962836]
[1751194792083,0.2032,2457.3,2457.2,10.63762836]
[1751194794104,0.2032,2457.3,2457.2,6.568]
[1751194800594,0.2032,2457.3,2457.2,10.63767279]
[1751194801188,0.2032,2457.3,2457.2,11.42077279]
[1751194802498,4.06845546,2458.0,2457.6,0.55]
[1751194802698,0.2032,2457.8,2457.7,6.567]
[1751194804370,4.2718793,2457.8,2457.7,6.567]
[1751194804592,14.2718793,2457.8,2457.7,6.567]
[1751194805805,10.2032,2457.8,2457.7,6.567]
[1751194809920,0.2032,2457.8,2457.7,6.567]
[1751194814895,4.2718793,2457.8,2457.7,6.567]
[1751194819592,0.2032,2457.8,2457.7,6.567]
[1751194821830,0.2032,2457.8,2457.5,0.55]
[1751194822029,4.2718793,2457.8,2457.7,6.565]
[1751194824344,4.06911504,2457.6,2457.5,6.565]
[1751194832256,4.0693493,2457.4,2457.0,1.3073]
[1751194832544,4.2725493,2457.4,2457.1,6.564]
[1751194833213,0.2032,2457.4,2457.1,6.564]
[1751194839665,0.2032,2457.4,2457.0,1.3073]
[1751194839872,0.2032,2457.4,2457.2,6.564]
[1751194840045,0.2032,2457.4,2457.3,0.7769]
[1751194841170,0.2032,2457.4,2457.3,0.7690388]
[1751194843175,0.2032,2457.4,2457.2,6.564]
[1751194846586,0.2032,2457.4,2457.1,0.7769]
[1751194846887,0.2032,2457.4,2457.0,7.113]
[1751194848135,0.2032,2457.4,2456.9,1.8832]
[1751194848136,0.2032,2457.4,2456.9,0.2052]
[1751194848341,0.2032,2457.1,2456.9,0.002]
[1751194853186,0.792,2457.2,2456.9,0.002]
[1751194858466,0.2469,2457.1,2456.9,0.002]
[1751194859484,0.792,2457.2,2456.9,0.002]
[1751194875703,1.678,2457.3,2456.9,0.002]
[1751194876476,2.4915,2457.4,2456.9,0.002]
[1751194889478,2.4915,2457.4,2456.9,0.7968]
[1751194890089,2.4915,2457.4,2456.9,0.002]
[1751194890288,10.24915,2457.3,2456.9,0.002]
[1751194892085,0.24915,2457.3,2456.9,0.002]
[1751194892296,2.4915,2457.4,2456.9,0.002]
[1751194894715,10.0,2457.3,2456.9,0.002]
[1751194894908,10.0,2457.3,2457.0,0.7948]
[1751194906001,0.2032,2457.1,2457.0,1.3448]
[1751194906201,0.2032,2457.3,2457.1,0.8244]
[1751194909229,0.2032,2457.3,2457.2,0.55]
[1751194909533,0.2032,2457.6,2457.2,0.8266]
[1751194911403,10.0,2457.8,2457.2,0.8266]
[1751194911604,0.2032,2457.4,2457.2,0.8266]
[1751194925349,10.0,2457.8,2457.3,0.55]
[1751194925515,10.0,2457.8,2456.9,0.002]
[1751194925516,0.2032,2457.6,2457.4,0.8273]
[1751194931962,2.8997483,2458.2,2457.6,0.797]
[1751194932125,0.2032,2457.8,2457.6,0.797]
[1751194935753,0.2032,2457.8,2457.7,0.55]
[1751194935947,0.11024782,2458.2,2457.5,0.7969]
[1751194936151,0.31344782,2458.2,2457.8,0.7969]
[1751194944048,0.11024782,2458.2,2457.6,2.4656]
[1751194944246,0.2032,2457.9,2457.6,0.7926]
[1751194944448,0.2032,2457.9,2457.5,0.2032]
[1751194944644,0.8261,2458.0,2457.4,0.7558]
[1751194944888,0.2032,2457.5,2457.2,0.7558]
[1751194945383,0.2032,2457.3,2457.0,0.7558]
[1751194946348,0.2032,2457.3,2457.0,1.6747]
[1751194946784,0.2032,2457.3,2457.0,0.7558]
[1751194957509,0.2032,2457.3,2456.9,0.2052]
[1751194957689,0.8023,2457.3,2456.9,0.002]
[1751194957893,0.2032,2457.1,2456.9,0.002]
[1751194960123,0.30287469,2457.7,2457.0,0.763]
[1751194960124,0.8023,2457.5,2457.0,0.763]
[1751194960418,0.2032,2457.3,2457.0,0.763]
[1751194963007,0.2032,2457.1,2457.0,6.556]
[1751194973651,0.2032,2457.1,2456.9,0.002]
[1751194973936,0.2032,2457.1,2456.9,6.558]
[1751194988152,1.97639094,2457.7,2457.0,0.762]
[1751194988153,0.2032,2457.3,2457.0,0.762]
[1751194988325,1.06769094,2457.7,2457.1,1.282]
[1751194988527,0.2032,2457.4,2457.1,0.55]
[1751194990668,0.2032,2457.7,2457.3,0.55]
[1751194996236,0.2032,2457.7,2457.4,0.8147]
[1751195008109,0.2032,2457.7,2457.3,0.55]
[1751195009556,0.2032,2457.7,2457.4,0.8076]
[1751195010291,10.811,2458.1,2457.5,0.55]
[1751195010601,0.2032,2457.8,2457.5,0.55]
[1751195020620,0.2032,2457.8,2457.5,6.552]
[1751195020988,0.2032,2457.8,2457.4,1.0108]
[1751195021820,0.2032,2457.7,2457.3,6.552]
[1751195028026,0.2032,2457.7,2457.2,1.5175]
[1751195028193,0.2032,2457.7,2457.2,8.0695]
[1751195028395,0.2032,2457.7,2457.2,9.04365]
[1751195033144,0.2032,2457.7,2457.2,0.7532]
[1751195033297,0.7556,2457.6,2457.2,0.55]
[1751195033504,0.2032,2457.5,2457.1,8.4272]
[1751195035336,0.7556,2457.6,2457.1,6.552]
[1751195035535,0.2032,2457.4,2457.1,6.552]
[1751195035704,0.2032,2457.4,2457.1,7.4735]
[1751195038426,0.2032,2457.4,2457.1,6.551]
[1751195038934,0.7526,2457.3,2457.1,6.551]
[1751195040126,0.7526,2457.3,2456.9,0.992]
[1751195040336,0.7526,2457.3,2457.0,6.551]
[1751195041040,0.2032,2457.4,2457.0,6.551]
[1751195043331,0.2032,2457.4,2456.9,0.2052]
[1751195043546,0.2032,2457.4,2457.0,6.551]
[1751195048540,0.8045,2457.3,2456.9,0.2052]
[1751195048734,0.8045,2457.3,2457.0,6.551]
[1751195049649,0.8045,2457.3,2456.9,0.2052]
[1751195049943,0.8045,2457.3,2457.0,6.551]
[1751195050134,0.2032,2457.2,2457.0,6.551]
[1751195063478,0.2032,2457.2,2457.0,7.39372]
[1751195064983,0.2032,2457.2,2457.1,6.551]
[1751195069386,0.2032,2457.2,2456.9,0.552]
[1751195069592,0.2032,2457.2,2457.1,6.551]
[1751195072794,0.2032,2457.2,2456.9,0.552]
[1751195072972,0.2032,2457.2,2457.1,6.55]
[1751195078699,0.2032,2457.2,2457.1,7.2602]
[1751195079005,0.2032,2457.2,2457.1,8.0926]
[1751195079669,0.2032,2457.2,2457.1,6.55]
[1751195081502,0.2032,2457.2,2457.0,6.55]
[1751195091822,0.2032,2457.2,2456.9,0.002]
[1751195091997,0.9625,2457.2,2457.0,6.549]
[1751195092197,0.9625,2457.2,2456.9,0.002]
[1751195092397,0.9625,2457.2,2457.0,6.549]
[1751195095030,0.2032,2457.2,2457.0,6.549]
[1751195095528,0.2032,2457.2,2457.0,7.22442]
[1751195112016,0.8136,2457.8,2457.1,1.3304]
[1751195112215,0.2032,2457.5,2457.1,1.5336]
[1751195114227,0.2032,2457.5,2457.2,0.7804]
[1751195121422,0.2032,2457.5,2457.1,0.7532]
[1751195121621,0.2032,2457.5,2457.1,1.630232]
[1751195128065,0.2032,2457.5,2457.1,0.7532]
[1751195128371,0.2032,2457.5,2457.1,0.2032]
[1751195128661,0.2032,2457.3,2457.0,7.3377]
[1751195130458,0.2032,2457.3,2456.9,0.2052]
[1751195130662,1.0104,2457.3,2456.9,6.7522]
[1751195131862,1.0104,2457.0,2456.9,0.002]
[1751195132165,0.8072,2457.0,2456.9,0.002]
[1751195171893,10.0,2457.1,2456.9,0.002]
[1751195175495,10.8244,2457.0,2456.9,0.002]
[1751195175697,18.7424,2457.0,2456.9,0.002]
[1751195175905,20.66695788,2457.0,2456.9,0.002]
[1751195177890,22.33495788,2457.0,2456.9,0.002]
[1751195178090,20.4104,2457.0,2456.9,0.002]
[1751195181328,0.8254,2456.8,2456.7,0.002]
[1751195181618,25.2904,2456.8,2456.7,0.002]
[1751195182391,55.2904,2456.8,2456.7,0.002]
[1751195182710,55.59538849,2456.8,2456.7,0.002]
[1751195182912,59.60871273,2456.8,2456.7,0.002]
[1751195185147,11.3348,2456.7,2455.1,0.8245]
[1751195185327,30.7848,2456.4,2455.1,0.8245]
[1751195185497,0.7848,2456.0,2455.1,0.8245]
[1751195185699,10.0,2455.9,2455.1,0.8245]
[1751195186029,1.667,2455.8,2455.1,0.8245]
[1751195195204,0.2032,2455.5,2455.1,0.8245]
[1751195234038,0.2032,2455.3,2455.1,0.8245]
[1751195243886,2.4582,2455.8,2455.1,0.8245]
[1751195244091,0.2032,2455.4,2455.1,0.8245]
[1751195256333,0.7999,2456.1,2455.3,0.8237]
[1751195256538,0.2032,2455.8,2455.4,0.8237]
[1751195261296,0.2032,2455.8,2455.5,0.55]
[1751195261498,0.2032,2455.8,2455.6,0.7914]
[1751195263939,0.2032,2455.8,2455.6,1.09224]
[1751195264111,0.2032,2456.1,2455.7,0.7914]
[1751195264312,0.2032,2456.1,2455.7,7.3384]
[1751195266516,0.2032,2456.1,2455.7,0.7914]
[1751195266712,0.2032,2456.1,2455.7,7.3384]
[1751195268242,0.2032,2456.1,2455.7,8.31426]
[1751195269553,0.2032,2456.1,2455.7,7.52286]
[1751195269753,0.2032,2456.1,2455.8,0.8269]
[1751195269942,0.7984,2456.6,2455.9,0.55]
[1751195270253,0.2032,2456.3,2456.0,0.8269]
[1751195277352,0.8203,2456.3,2455.7,1.76476]
[1751195277521,0.8203,2456.3,2455.8,6.546]
[1751195277522,0.2032,2456.0,2455.8,6.546]
[1751195278750,10.30498849,2456.8,2455.8,6.546]
[1751195278959,0.2032,2456.2,2455.8,6.546]
[1751195282763,0.2032,2456.2,2455.9,0.7549]
[1751195288368,0.2032,2456.2,2455.8,6.546]
[1751195298472,0.2032,2456.2,2455.7,1.035]
[1751195298654,0.2032,2456.0,2455.7,0.8318]
[1751195300272,0.2032,2456.0,2455.5,9.2131]
[1751195300674,0.783,2456.1,2455.3,2.4649]
[1751195300973,0.2032,2455.7,2455.3,9.2131]
[1751195301167,0.2032,2455.7,2455.3,10.13441]
[1751195301664,0.2032,2455.7,2455.3,3.58941]
[1751195301868,0.2032,2455.7,2455.3,2.6681]
[1751195312685,0.2032,2455.7,2455.3,1.8692]
[1751195315753,0.8144,2455.2,2454.8,1.12372]
[1751195317489,0.8144,2455.2,2454.8,0.2052]
[1751195317702,0.8144,2455.2,2454.8,0.002]
[1751195319051,1.666,2455.1,2454.8,0.002]
[1751195319258,0.8144,2455.0,2454.8,0.002]
[1751195332880,0.7511,2455.0,2454.8,0.002]
[1751195333085,11.666,2455.1,2454.8,0.002]
[1751195333901,12.15399402,2455.1,2454.8,0.002]
[1751195335984,10.48799402,2455.1,2454.8,0.002]
[1751195336474,0.2032,2454.9,2454.8,0.002]
[1751195356743,4.284,2457.1,2454.8,0.8293]
[1751195356744,0.2032,2455.1,2454.8,0.8293]
[1751195360023,1.667,2455.5,2454.8,0.8293]
[1751195360024,0.2032,2455.2,2454.8,1.0325]
[1751195360928,0.2032,2455.2,2454.9,0.55]
[1751195361112,0.2032,2455.5,2455.1,0.2032]
[1751195361317,0.2032,2455.7,2455.4,0.7919]
[1751195362345,10.0,2456.8,2455.5,0.55]
[1751195362512,0.001,2457.3,2455.7,0.55]
[1751195362513,0.2032,2456.1,2455.7,0.55]
[1751195364415,0.7919,2456.6,2455.9,0.55]
[1751195364839,0.001,2456.9,2456.0,0.7775]
[1751195365045,0.7919,2456.8,2456.0,0.7775]
[1751195374542,0.2032,2456.5,2456.0,0.9807]
[1751195382687,0.29863623,2456.9,2456.0,0.7775]
[1751195382688,0.7951,2456.6,2456.0,0.7775]
[1751195382843,0.2032,2456.1,2456.0,0.7775]
[1751195388583,0.2032,2456.1,2455.8,0.7543]
[1751195404125,0.7535,2456.6,2455.9,0.55]
[1751195404412,0.2032,2456.3,2456.0,0.7564]
[1751195404917,0.8051,2456.8,2456.0,0.7564]
[1751195405074,0.2032,2456.4,2456.0,0.9596]
[1751195408221,0.2032,2456.4,2456.1,0.55]
[1751195413117,0.2032,2456.4,2456.2,0.7848]
[1751195413428,0.2032,2456.6,2456.2,0.988]
[1751195413802,0.8051,2456.8,2456.3,0.55]
[1751195413997,1.0083,2456.8,2456.3,0.7532]
[1751195415016,0.8051,2456.8,2456.0,0.8262]
[1751195415190,0.2032,2456.5,2456.1,0.55]
[1751195415812,0.9879,2456.5,2456.1,0.55]
[1751195420514,0.9879,2456.5,2456.1,7.096]
[1751195423904,0.2032,2456.5,2456.1,7.096]
[1751195435642,0.2032,2456.5,2456.0,1.0294]
[1751195435943,0.2032,2456.3,2456.0,6.545]
[1751195461669,0.2032,2456.3,2455.9,1.666]
[1751195461870,0.2032,2456.3,2456.0,6.545]
[1751195470562,1.0157,2456.4,2456.0,7.46466]
[1751195472475,1.0157,2456.4,2455.9,0.2032]
[1751195472678,1.0157,2456.4,2456.0,6.545]
[1751195473241,1.0157,2456.4,2455.9,0.2032]
[1751195473447,0.8125,2456.4,2456.0,6.545]
[1751195473677,0.2032,2456.3,2456.0,6.545]
[1751195474677,0.2032,2456.3,2455.8,0.9856]
[1751195474883,10.001,2456.9,2455.6,0.55]
[1751195474884,0.2032,2456.1,2455.9,6.545]
[1751195489601,0.2032,2456.1,2455.6,0.7532]
[1751195489901,0.2032,2456.1,2455.7,6.545]
[1751195490101,0.2032,2456.1,2455.6,0.7532]
[1751195490400,0.2032,2456.1,2455.7,6.545]
[1751195491395,0.2032,2455.7,2455.5,6.545]
[1751195492298,0.2032,2455.6,2455.3,6.7482]
[1751195492493,0.2032,2455.6,2455.3,8.6431]
[1751195494179,0.6835,2455.6,2455.3,8.6431]
[1751195498812,0.6835,2455.6,2455.3,2.0981]
[1751195499014,0.6835,2455.6,2455.4,6.545]
[1751195501888,0.2032,2455.6,2455.4,6.545]
[1751195507227,0.2032,2455.6,2455.3,0.2032]
[1751195507393,0.2032,2455.3,2455.2,6.545]
[1751195509049,0.2032,2455.3,2455.1,6.545]
[1751195509227,1.666,2456.0,2454.9,0.2052]
[1751195509530,0.6835,2455.1,2455.0,6.545]
[1751195510331,0.6835,2455.1,2454.9,6.547]
[1751195511009,0.6835,2455.1,2454.9,0.002]
[1751195511010,0.4803,2455.1,2454.9,0.002]
[1751195531241,10.4803,2455.1,2454.9,0.002]
[1751195531421,2.04803,2455.0,2454.9,0.002]
[1751195531752,12.04803,2455.0,2454.9,0.002]
[1751195537052,1.666,2455.4,2454.9,0.002]
[1751195537256,0.3124669,2455.5,2454.9,0.002]
[1751195537257,0.4803,2455.5,2454.9,0.002]
[1751195537424,0.2032,2455.1,2455.0,0.7502]
[1751195546181,0.2032,2455.1,2454.9,0.002]
[1751195547347,0.4803,2455.5,2454.9,0.002]
[1751195547549,0.4803,2455.3,2454.9,0.002]
[1751195556394,2.1453,2455.3,2454.9,0.002]
[1751195561569,12.1453,2455.3,2454.9,0.002]
[1751195561770,0.4803,2455.1,2454.9,0.002]
[1751195574906,0.6,2455.0,2454.9,0.002]
[1751195575124,1.70803,2455.0,2454.9,0.002]
[1751195585350,11.70803,2455.0,2454.9,0.002]
[1751195586973,12.18833,2455.0,2454.9,0.002]
[1751195587656,10.0,2454.9,2454.8,0.002]
[1751195587864,0.2032,2454.9,2454.8,0.002]
[1751195588036,1.442353,2454.9,2454.8,0.002]
[1751195588735,41.442353,2454.9,2454.8,0.002]